Cogmind - Beta 15 @@@ ROGUE MODE // 2025.08.30 @ 08:32:55 Player: shapeshifter Result: Destroyed by CD-426(R) with Subdweller Machine Gun Performance ------------- Evolutions (0) 0 Regions Visited (2) 400 Robots Destroyed (6) 30 Value Destroyed (179) 179 Prototype IDs (0) 0 Alien Tech Used (0) 0 Bonus (0) 0 TOTAL SCORE: 609 Bonus ------- None Cogmind --------- Core Integrity 0/250 Matter 241/300 Energy 125/125 System Corruption 0% Temperature Cool (0) Movement Treading (160) Location -10/Subcaves Parts ------- > --- POWER (1) -------- Light Ion Engine > --- PROPULSION (2) --- Light Treads Light Treads > --- UTILITY (2) ------ Small Storage Unit Seismic Detector > --- WEAPON (2) ------- Assault Rifle Battle Rifle > --- INVENTORY (8) ---- Subdweller Power Source Light Treads Compact Wheel Compact Wheel Subdweller Machine Gun Barrage Gun Grenade Launcher Peak State ------------ > --- POWER ------------ Light Ion Engine > --- PROPULSION ------- Light Treads Light Treads > --- UTILITY ---------- Small Storage Unit Seismic Detector > --- WEAPON ----------- Assault Rifle Battle Rifle > --- INVENTORY -------- Light Ion Engine Subdweller Power Source Light Treads Compact Wheel Compact Wheel Subdweller Machine Gun Barrage Gun Grenade Launcher [Rating: 9] Favorites ----------- Power Light Ion Engine Engine Light Ion Engine Propulsion Light Treads Treads Light Treads Utility Small Storage Unit Device Seismic Detector Storage Small Storage Unit Weapon Assault Rifle Energy Gun EM Pulse Gun Ballistic Gun Assault Rifle Build | -11 -10 -10 ------- Run | Yrd Mat Sub Slots Evolved . | . . . Power . | . . . Propulsion . | . . . Utility . | . . . Weapon . | . . . Parts Attached 9 | 7 . 2 Power 2 | 1 . 1 Engine 2 | 1 . 1 Core . | . . . Reactor . | . . . Propulsion 2 | 2 . . Treads 2 | 2 . . Leg . | . . . Wheel . | . . . Hover . | . . . Flight . | . . . Utility 2 | 2 . . Device 1 | 1 . . Storage 1 | 1 . . Processor . | . . . Hackware . | . . . Protection . | . . . Artifact . | . . . Weapon 3 | 2 . 1 Energy Gun 1 | 1 . . Energy Cannon . | . . . Ballistic Gun 2 | 1 . 1 Ballistic Cannon . | . . . Launcher . | . . . Special Weapon . | . . . Impact Weapon . | . . . Slashing Weapon . | . . . Piercing Weapon . | . . . Special Melee Weapon . | . . . Unidentified Prototypes . | . . . Parts Lost 1 | . . 1 Power 1 | . . 1 Propulsion . | . . . Utility . | . . . Weapon . | . . . Highest Loss Streak 1 | . . 1 To Critical Strikes . | . . . Average Backups 5 | 2 4 7 Power 1 | . 1 1 Propulsion 2 | 1 2 3 Utility . | . . . Weapon 1 | . . 2 Tool/Special . | . . . Unused Backups 10 | 1 . 9 Power 1 | . . 1 Propulsion 4 | . . 4 Utility . | . . . Weapon 5 | 1 . 4 Tool/Special . | . . . Average Slot Usage (%) 99 | . 100 99 Engine 13 | . 14 13 Treads 28 | . 28 28 Device 14 | . 14 14 Storage 14 | . 14 14 Energy Gun 7 | . 14 5 Ballistic Gun 20 | . 14 22 Peak Build Rating 9 | 7 7 9 Average Rating 7 | 4 7 8 On Entrance 4 | . 7 7 Naked Turns . | . . . Heaviest Build 13 | 13 13 13 Greatest Support 40 | 40 40 40 Greatest Overweight (x) . | . . . Average Overweight (x) . | . . . Largest Inventory Capacity 8 | 8 8 8 Average Capacity 7 | 7 8 8 Most Carried 8 | 7 5 8 Average Carried 5 | 2 4 7 Final Capacity 8 | 8 8 8 Final Carried 7 | 3 5 7 Class Distribution -------------------- 100% | Mutant Dominant Class ---------------- Mutant | -10/Materials Mutant | -10/Subcaves Resources | -11 -10 -10 ----------- Run | Yrd Mat Sub Matter Collected 346 | 282 . 64 Remotely . | . . . Salvage Created 254 | 53 . 201 Parts 19 | 6 . 13 Haulers Intercepted . | . . . Recyclers Shooed . | . . . Parts Field Recycled . | . . . Retrieved Matter . | . . . Parts Self-Destructed 2 | . . 2 Prevented . | . . . Kills | -11 -10 -10 ------- Run | Yrd Mat Sub Combat Hostiles Destroyed 4 | . . 4 Guns 4 | . . 4 Classes Destroyed 3 | 1 . 2 Tunneler 2 | 2 . . Sentry 1 | . . 1 Subdweller 3 | . . 3 Best Kill Streak 2 | 2 . 1 Combat Bots Only 1 | . . 1 Max Kills in Single Turn 1 | 1 . 1 Gunslinging . | . . . Exploded . | . . . Melee . | . . . Uniques/NPCs Destroyed . | . . . Combat | -11 -10 -10 -------- Run | Yrd Mat Sub Hostile Shots Fired 41 | . . 41 Missed 12 | . . 12 Hits 29 | . . 29 Projectile 29 | . . 29 Critical Strikes 4 | . . 4 Damage Taken 656 | . . 656 Core 257 | . . 257 Absorbed by Shields . | . . . Core Remaining (%) 100 | 100 . . Volleys Fired 24 | 4 . 20 Largest 2 | 2 . 2 Hottest 60 | 60 . 60 Shots Fired 48 | 8 . 40 Gun 48 | 8 . 40 Cannon . | . . . Launcher . | . . . Special . | . . . Kinetic 40 | 4 . 36 Thermal . | . . . Explosive . | . . . Electromagnetic 8 | 4 . 4 Robot Hit Streak 11 | 2 . 11 Robot Miss Streak 2 | 1 . 2 Penetration Max . | . . . Secondary Targets . | . . . Shots Hit Robots 36 | 5 . 31 Core Hits 10 | 2 . 8 Critical Kills . | . . . Critical Parts Destroyed . | . . . Critical Strikes . | . . . Melee Attacks . | . . . Impact . | . . . Slashing . | . . . Piercing . | . . . Sneak Attacks . | . . . Combat Hostiles . | . . . Follow-up Attacks . | . . . Damage Inflicted 482 | 67 . 415 Guns 482 | 67 . 415 Cannons . | . . . Explosions . | . . . Melee . | . . . Ramming . | . . . Kinetic 420 | 41 . 379 Thermal . | . . . Explosive . | . . . Electromagnetic 62 | 26 . 36 Impact . | . . . Slashing . | . . . Piercing . | . . . Highest Corruption . | . . . Average Corruption . | . . . Corruption Purged . | . . . Corruption Blocked . | . . . Overload Shots . | . . . Overflow Damage . | . . . Projectiles . | . . . Explosions . | . . . Melee . | . . . Knockbacks . | . . . Impact . | . . . Kinetic . | . . . Secondary . | . . . Self-Inflicted Damage . | . . . Shots . | . . . Rammed . | . . . Targets Rammed . | . . . Kicked . | . . . Crushed . | . . . Highest Temperature 9 | . . 9 Average Temperature 9 | . . 9 Received Heat Transfer 69 | . . 69 Siege Activations . | . . . Martial Activations . | . . . Shielding Activations . | . . . Robots Disrupted . | . . . Combat Hostiles . | . . . Robots Corrupted . | . . . Combat Hostiles . | . . . Parts Fried . | . . . Impact Corruptions . | . . . Robots Melted . | . . . Combat Hostiles . | . . . Parts Melted . | . . . Heat Transferred . | . . . Parts Sabotaged . | . . . Parts Stolen . | . . . Parts Stripped . | . . . Power Chain Reactions . | . . . Alert | -11 -10 -10 ------- Run | Yrd Mat Sub Maximum Alert Level . | . . . Low Security (%) 100 | 100 100 . Level 1 . | . . . Level 2 . | . . . Level 3 . | . . . Level 4 . | . . . Level 5 . | . . . High Security . | . . . Max Security . | . . . Peak Influence 10 | 10 . . Initial . | . . . Average . | 1 . . Influence Increases 30 | 10 . 20 Destroy 0b10 Robot/C 20 | . . 20 Destroy 0b10 Robot/NC 10 | 10 . . Influence Decreases 30 | 10 . 20 Time Decay 30 | 10 . 20 Squads Dispatched . | . . . Investigation . | . . . Extermination . | . . . Reinforcement . | . . . Assault . | . . . Garrison . | . . . Intercept . | . . . Searches Triggered . | . . . Construction Impeded . | . . . Haulers Reinforced . | . . . Active Scanning Responses . | . . . Cargo Convoy Interrupts . | . . . Stealth | -11 -10 -10 --------- Run | Yrd Mat Sub Distress Signals . | . . . Communications Jammed . | . . . Distress Signals . | . . . Times Spotted 5 | . . 5 Peak Tracking Total 2 | . . 2 Tactical Retreats . | . . . Traps | -11 -10 -10 ------- Run | Yrd Mat Sub Traps Triggered 2 | . . 2 Indirectly . | . . . Trap Hack Attempts . | . . . Triggered . | . . . Disarmed . | . . . Reprogrammed . | . . . Reused . | . . . Traps Extracted . | . . . Installed . | . . . Triggered . | . . . Machines | -11 -10 -10 ---------- Run | Yrd Mat Sub Machines Disabled . | . . . Max in Single Turn . | . . . Machines Repaired . | . . . Machines Dismantled . | . . . Machines Sabotaged . | . . . Overloaded Fab Kills . | . . . Hacking | -11 -10 -10 --------- Run | Yrd Mat Sub Machines Accessed . | . . . Terminals . | . . . Fabricators . | . . . Repair Stations . | . . . Recycling Units . | . . . Scanalyzers . | . . . Garrison Access . | . . . Total Hacks . | . . . Successful . | . . . Failed . | . . . Catastrophic . | . . . Database Lockouts . | . . . Manual . | . . . Terminals . | . . . Fabricators . | . . . Repair Stations . | . . . Recycling Units . | . . . Scanalyzers . | . . . Garrison Access . | . . . Terminal Hacks . | . . . Fabricator Hacks . | . . . Repair Station Hacks . | . . . Recycling Unit Hacks . | . . . Scanalyzer . | . . . Garrison Access Hacks . | . . . Unauthorized Hacks . | . . . Terminals . | . . . Fabricators . | . . . Repair Stations . | . . . Recycling Units . | . . . Scanalyzers . | . . . Garrison Access . | . . . Data Cores Recovered . | . . . Used . | . . . Hacking Detections . | . . . Full Trace Events . | . . . Feedback Events . | . . . Feedback Blocked . | . . . Robot Schematics Acquired . | . . . Robots Built . | . . . Authchips . | . . . Time . | . . . Total Robot Build Rating . | . . . Part Schematics Acquired . | . . . Parts Built . | . . . Authchips . | . . . Time . | . . . Total Part Build Rating . | . . . Parts Repaired . | . . . Time . | . . . Parts Recycled . | . . . Recycled Matter . | . . . Retrieved Matter . | . . . Retrieved Components . | . . . Parts Scanalyzed . | . . . Part Schematics Acquired . | . . . Parts Damaged . | . . . Bothacking | -11 -10 -10 ------------ Run | Yrd Mat Sub Used RIF Installer . | . . . Robots Hacked . | . . . Non-combat . | . . . Combat . | . . . Robot Hacks Applied . | . . . Relay Couplers Released . | . . . Fabnet Peak Effective % . | . . . Robots Rewired . | . . . Allies Hacked . | . . . Hacks Repelled . | . . . Allies | -11 -10 -10 -------- Run | Yrd Mat Sub Total Allies . | . . . Largest Group . | . . . Highest-Rated Group . | . . . Highest-Rated Ally . | . . . Total Orders . | . . . Ally Attacks . | . . . Total Damage . | . . . Kills . | . . . Allies Corrupted . | . . . Allies Melted . | . . . Intel | -11 -10 -10 ------- Run | Yrd Mat Sub Active Infowar (turns) 1134 | 11 356 767 Seismic 1134 | 11 356 767 Robot Analysis Total . | . . . Derelict Logs Recovered 1 | . . 1 Drone Launches . | . . . Drone Recoveries . | . . . Exploration | -11 -10 -10 ------------- Run | Yrd Mat Sub Turns Passed 1242 | 119 356 767 Spaces Moved 590 | 65 88 437 Core 13 | 13 . . Treads 577 | 52 88 437 Legs . | . . . Wheels . | . . . Hover . | . . . Flight . | . . . Fastest Speed 50 | 50 160 160 Average Speed 157 | 138 160 160 Slowest Speed 160 | 160 160 160 Overloaded Moves . | . . . Propulsion Burnouts . | . . . Robots Hopped . | . . . Potential Cave-ins . | . . . Cave-ins Triggered . | . . . Exploration Rate (%) 16 | 5 22 23 Regions Visited 2 Branch Regions 1 Pre-discovered Areas 1 | . . 1 Known Exits Taken . | . . . Unknown Exits Taken 2 | 1 1 . Scrap Searched 2 | . . 2 Spaces Dug . | . . . Terrain Destroyed . | . . . Melee . | . . . Projectile . | . . . AOE . | . . . Terrain Rammed . | . . . Walls Destroyed . | . . . Machines Disabled . | . . . Actions | -11 -10 -10 --------- Run | Yrd Mat Sub Total 858 | 87 303 468 Wait 215 | . 214 1 Move 588 | 64 87 437 Hop . | . . . Pick Up 18 | 11 2 5 Fast Attach 1 | . . 1 Attach 8 | 7 . 1 Detach . | . . . Swap . | . . . Drop 4 | 1 . 3 Fire 24 | 4 . 20 Melee . | . . . Ram . | . . . Kick . | . . . Crush . | . . . Escape Stasis . | . . . Rewire . | . . . Trap . | . . . Miscellaneous . | . . . Route ------- -11/Scrapyard -10/Materials -10/Subcaves History --------- Turn | Location | Event 3 | -11/Scrapyard | Discovered new exit (range 16) 120 | -11/Scrapyard | Entered Materials 301 | -10/Materials | Build established: Mutant 458 | -10/Materials | Discovered new exit (range 10) 476 | -10/Materials | Entered Subcaves 760 | -10/Subcaves | Disturbed a concealed Subdweller 842 | -10/Subcaves | Learned location of Zion (-6) 1212 | -10/Subcaves | Ambushed by Subdwellers from Twisted Machinery 1218 | -10/Subcaves | Core integrity fell below 50% 1238 | -10/Subcaves | Core integrity fell below 20% 1243 | -10/Subcaves | Destroyed by CD-426(R) with Subdweller Machine Gun Last Messages --------------- 00755_ Dropped EM Pulse Gun. 00755_ Acquired Battle Rifle. 00757_ Acquired 10 matter. 00760_ 4X-70O(R) angrily emerges from the Twisted Machinery. 00763_ 4X-70O(R) affixes Scrap Shield Fragment to Scrap Shield. 00764_ 4X-70O(R) destroyed. 00767_ Acquired 12 matter. 00842_ Acquired derelict log, extracted data. World map updated: -6/Zion. 01115_ Critical hit (Burn: +37). 01127_ Y-45 Defender destroyed. 01138_ Lgt. Treads fries itself beyond repair. 01139_ Heat Sink fries itself beyond repair. 01141_ Acquired 30 matter. 01212_ CD-426(R) emerges from the Twisted Machinery. 01227_ Lgt. Ion Engine destroyed. 01233_ IA-KQF(R) destroyed. Map ----- +----------------------------------------------------+ | ??????????????????????????????????????# | | ???????????????????????????????????##### | | ????????????????????????????????#### ### ### | | ????????????????????????????##### ### ### | | ????????????????????????????# ## ## | | ????????????????????????????# #### | | ????????????????????????????# ###??# | | ????????????????????????????# ## #????? | | ???????????????????????????## #????? | | ??????????????????????????## #????? | | ??????????????????????????# % ####?? | | ?????????????????##???????# ##? | | ????????????????## #??????# #? | | ???????????? ### ??????# ## ### ## ## | | ???????????? ????## #####?# ### | | ??????????? ##?## ##?????# ##### # | | ??????????? ## #??????# #??# # | | ??????????? #??????##### #??# ## | | ???????????????# ###????????###??###? | | ???????????????# #????????????????? | | ???????????????# #????????????????? | | ???????????????# #????????????????? | | ???????????????## ##???????????????? | | ????????????????# ##??????????????? | | ????????????????###### #??????????????? | | ?????????????????????## &@ #??????????????? | | ??????????????????????##%! ##??????????????? | | ?????????????????????? "[ ##???????????????? | | ?????????????????????"""R #????????????????? | | ???????????????????? " #???????????????? | | ??????????????????""""#" #??????????????? | | ??????????????????"""## ## ### #??????????????? | | ??????????????????????# ??## #?? #??????????????? | | ??????????????????????""???? ??? ?????????????? | | ??????????????????????#"???? ???? ????????????? | | ??????????????????????##???? ???? ????????????? | | ????????????????????????????? ??????????????????? | | ????????????????????????????? ?????????????????? | | ????????????????????????????? ?????????????????? | | ?????????????????????????????????????????????????? | | ?????????????????????????????????????????????????? | | ?????????????????????????????????????????????????? | | ?????????????????????????????????????????????????? | | ?????????????????????????????????????????????????? | | ?????????????????????????????????????????????????? | | ?????????????????????????????????????????????????? | | ?????????????????????????????????????????????????? | | ?????????????????????????????????????????????????? | | ?????????????????????????????????????????????????? | | ?????????????????????????????????????????????????? | +----------------------------------------------------+ Best States ------------- Heat Dissipation 25 Energy Generation 10 Energy Capacity 125 Matter Stores 300 Matter Capacity 300 Sight Range 16 Terrain Scan Density 10 Evasion (%) 50 Recoil Reduction 2 Item Schematics ----------------- None Robot Schematics ------------------ None Fabricated ------------ Nothing Repaired ---------- Nothing Alien Tech Used ----------------- None Achievements -------------- None Challenges ------------ None Game ------ Seed RefineryImpulseCalibrator Manual? 0 Play Time 00:04:53 Cumulative 230.4 hours Start 2025.08.30 @ 08:29:51 End 2025.08.30 @ 08:32:55 Sessions 1 Manual Loads 0 Difficulty Rogue Special Mode None Game No. 341 Rogue 341 Adventurer 0 Explorer 0 Win Type - Total 4 Types 3/0/1/0/0/0/0/0/0/0 Lore% 81 Gallery% 76 Achievement% 58 Wizard Run 0 Options --------- Layout 1 ASCII 0 Keyboard 0 Movement Mouse Keybinds 0 Fullscreen 1 Font 32/SmallcapsGlow Map View 50x35 Zoom Use 0% Tactical HUD 1 Map Filters NONE Filters NONE Steam 1 RUN: 5a59d73a-b1ed-4fdf-a14c-20fb464a7e5f